[Event "FTX Road to Miami KO 2022"]
[Site "Online"]
[Date "2022.07.14"]
[Round "1.1"]
[White "Sevian, Samuel"]
[Black "Wei, Yi"]
[Result "0-1"]
[ECO "B06"]
[WhiteElo "2684"]
[BlackElo "2727"]
[PlyCount "194"]
[EventDate "2022.07.09"]
[EventType "k.o."]
[EventCountry "NET"]
[TimeControl "900+10"]

1. d4 {[%emt 0:00:00]} g6 {[%emt 0:00:00]} 2. e4 {[%emt 0:01:22]} Bg7 {[%emt 0:00:05]} 3. Nc3 {[%emt 0:00:00]} a6 {[%emt 0:00:08]} 4. g4 {[%emt 0:00:31]} d6 {[%emt 0:03:06]} 5. Bg2 {[%emt 0:00:40]} Nc6 {[%emt 0:00:19]} 6. d5 {[%emt 0:00:21]} Nd4 {[%emt 0:00:02]} 7. g5 {[%emt 0:00:53]} h6 {[%emt 0:00:48]} 8. h4 {[%emt 0:00:12]} e5 {[%emt 0:00:20]} 9. Nce2 {[%emt 0:01:10]} c5 {[%emt 0:01:58]} 10. Ng3 {[%emt 0:00:52]} f5 {[%emt 0:02:30]} 11. gxf6 {[%emt 0:02:05]} Nxf6 {[%emt 0:00:07]} 12. c3 {[%emt 0:00:29]} Nb5 {[%emt 0:00:39]} 13. Bh3 {[%emt 0:01:16]} O-O {[%emt 0:01:27]} 14. h5 {[%emt 0:00:05]} g5 {[%emt 0:00:10]} 15. Bxc8 {[%emt 0:00:19]} Rxc8 {[%emt 0:00:29]} 16. Be3 {[%emt 0:00:16]} Nc7 {[%emt 0:00:50]} 17. f3 {[%emt 0:00:27]} b5 {[%emt 0:00:18]} 18. N1e2 {[%emt 0:00:09]} Qd7 {[%emt 0:00:23]} 19. Qd2 {[%emt 0:00:31]} Nh7 {[%emt 0:00:57]} 20. Rf1 {[%emt 0:00:26]} Na8 {[%emt 0:00:01]} 21. b3 {[%emt 0:01:30]} a5 {[%emt 0:00:32]} 22. a4 {[%emt 0:02:00]} Nb6 {[%emt 0:00:24]} 23. axb5 {[%emt 0:00:25]} Qxb5 {[%emt 0:00:04]} 24. Qa2 {[%emt 0:00:15]} Ra8 {[%emt 0:01:45]} 25. c4 {[%emt 0:00:03]} Qd7 {[%emt 0:00:28]} 26. Qc2 {[%emt 0:00:01]} Nf6 {[%emt 0:00:56]} 27. Rh1 {[%emt 0:00:50]} a4 {[%emt 0:00:15]} 28. b4 {[%emt 0:00:49]} Qc7 {[%emt 0:00:33]} 29. bxc5 {[%emt 0:00:02]} dxc5 {[%emt 0:00:01]} 30. Nf5 {[%emt 0:00:06]} a3 {[%emt 0:00:07]} 31. Qc1 {[%emt 0:00:48]} a2 {[%emt 0:00:14]} 32. Qc2 {[%emt 0:00:37]} Ra4 {[%emt 0:00:03]} 33. Rxa2 {[%emt 0:00:05]} Rxc4 {[%emt 0:00:01]} 34. Qb1 {[%emt 0:00:13]} Rb4 {[%emt 0:00:14]} 35. Qc2 {[%emt 0:00:22]} Nc4 {[%emt 0:00:09]} 36. Bc1 {[%emt 0:00:15]} Qd7 {[%emt 0:00:27]} 37. Neg3 {[%emt 0:00:03]} Rfb8 {[%emt 0:00:11]} 38. Kf1 {[%emt 0:00:19]} Bf8 {[%emt 0:00:10]} 39. Kg2 {[%emt 0:00:07]} Kh7 {[%emt 0:00:02]} 40. Qc3 {[%emt 0:00:29]} Qf7 {[%emt 0:00:06]} 41. Bd2 {[%emt 0:00:19]} Nxd2 {[%emt 0:00:28]} 42. Qxd2 {[%emt 0:00:04]} c4 {[%emt 0:00:08]} 43. d6 {[%emt 0:00:01]} c3 {[%emt 0:00:05]} 44. Qf2 {[%emt 0:00:18]} Rb2 {[%emt 0:00:05]} 45. Rxb2 {[%emt 0:00:01]} Rxb2 {[%emt 0:00:02]} 46. Ne2 {[%emt 0:00:01]} Nxh5 {[%emt 0:00:05]} 47. Rxh5 {[%emt 0:00:15]} Qxh5 {[%emt 0:00:00]} 48. d7 {[%emt 0:00:01]} g4 {[%emt 0:00:37]} 49. fxg4 {[%emt 0:00:27]} Qxg4+ {[%emt 0:00:02]} 50. Nfg3 {[%emt 0:00:00]} Be7 {[%emt 0:00:22]} 51. Qf7+ {[%emt 0:00:02]} Qg7 {[%emt 0:00:02]} 52. Qc4 {[%emt 0:00:01]} Bh4 {[%emt 0:00:15]} 53. Kh3 {[%emt 0:00:01]} Bd8 {[%emt 0:00:05]} 54. Qc8 {[%emt 0:00:39]} Qg5 {[%emt 0:00:05]} 55. Qc4 {[%emt 0:00:33]} Qg7 {[%emt 0:00:17]} 56. Qc8 {[%emt 0:00:02]} Qe7 {[%emt 0:00:12]} 57. Kg2 {[%emt 0:00:19]} Qg5 {[%emt 0:00:10]} 58. Qc4 {[%emt 0:00:08]} c2 {[%emt 0:00:13]} 59. Kf3 {[%emt 0:00:11]} c1=Q {[%emt 0:00:12]} 60. Qf7+ {[%emt 0:00:02]} Qg7 {[%emt 0:00:10]} 61. Qf5+ {[%emt 0:00:13]} Qg6 {[%emt 0:00:01]} 62. Nxc1 {[%emt 0:00:02]} Rd2 {[%emt 0:00:20]} 63. Nce2 {[%emt 0:00:25]} Rd3+ {[%emt 0:00:05]} 64. Kf2 {[%emt 0:00:05]} Bh4 {[%emt 0:00:19]} 65. Qxe5 {[%emt 0:00:05]} Rxd7 {[%emt 0:00:02]} 66. Kg2 {[%emt 0:00:06]} Bxg3 {[%emt 0:00:12]} 67. Nxg3 {[%emt 0:00:03]} Qg4 {[%emt 0:00:03]} 68. Qf5+ {[%emt 0:00:27]} Qxf5 {[%emt 0:00:01]} 69. exf5 {[%emt 0:00:00]} Rd3 {[%emt 0:00:18]} 70. Nh5 {[%emt 0:00:02]} Kg8 {[%emt 0:00:06]} 71. Nf6+ {[%emt 0:00:04]} Kg7 {[%emt 0:00:03]} 72. Ng4 {[%emt 0:00:02]} Rd5 {[%emt 0:00:10]} 73. Ne3 {[%emt 0:00:10]} Rd4 {[%emt 0:00:01]} 74. Kf3 {[%emt 0:00:19]} Kf6 {[%emt 0:00:02]} 75. Kg3 {[%emt 0:00:01]} Kg5 {[%emt 0:00:02]} 76. Kf3 {[%emt 0:00:00]} h5 {[%emt 0:00:07]} 77. Kg3 {[%emt 0:00:21]} Rf4 {[%emt 0:00:01]} 78. Kg2 {[%emt 0:00:02]} h4 {[%emt 0:00:02]} 79. Nd1 {[%emt 0:00:03]} Rxf5 {[%emt 0:00:05]} 80. Nf2 {[%emt 0:00:01]} Ra5 {[%emt 0:00:14]} 81. Nh3+ {[%emt 0:00:05]} Kh5 {[%emt 0:00:09]} 82. Nf2 {[%emt 0:00:01]} Rg5+ {[%emt 0:00:30]} 83. Kh2 {[%emt 0:00:04]} Rg3 {[%emt 0:00:05]} 84. Ne4 {[%emt 0:00:02]} Re3 {[%emt 0:00:09]} 85. Nf2 {[%emt 0:00:01]} Kg5 {[%emt 0:00:02]} 86. Kg2 {[%emt 0:00:03]} Rg3+ {[%emt 0:00:07]} 87. Kh2 {[%emt 0:00:01]} Kf4 {[%emt 0:00:04]} 88. Nh3+ {[%emt 0:00:03]} Kg4 {[%emt 0:00:14]} 89. Nf2+ {[%emt 0:00:03]} Kf3 {[%emt 0:00:06]} 90. Nd3 {[%emt 0:00:05]} Ke3 {[%emt 0:00:21]} 91. Ne1 {[%emt 0:00:05]} Kf2 {[%emt 0:00:03]} 92. Nc2 {[%emt 0:00:01]} Rg4 {[%emt 0:00:16]} 93. Na1 {[%emt 0:00:09]} Rg2+ {[%emt 0:00:16]} 94. Kh3 {[%emt 0:00:01]} Rg1 {[%emt 0:00:01]} 95. Nc2 {[%emt 0:00:02]} Rh1+ {[%emt 0:00:02]} 96. Kg4 {[%emt 0:00:01]} Rc1 {[%emt 0:00:01]} 97. Na3 {[%emt 0:00:05]} h3 {[%emt 0:00:01]} 0-1

[Event "FTX Road to Miami KO 2022"]
[Site "Online"]
[Date "2022.07.15"]
[Round "2.1"]
[White "Aronian, Levon"]
[Black "Duda, Jan-Krzysztof"]
[Result "1/2-1/2"]
[ECO "E20"]
[WhiteElo "2775"]
[BlackElo "2750"]
[Annotator "TA"]
[PlyCount "108"]
[EventDate "2022.07.09"]
[EventType "k.o."]
[EventCountry "NET"]
[SourceTitle "playchess.com"]
[Source "ChessBase"]
[SourceQuality "1"]
[TimeControl "900+10"]

{[%evp 14,108,18,14,22,22,32,27,35,33,31,23,25,0,0,0,0,0,0,0,0,0,0,0,0,0,0,2,13,13,14,0,0,0,0,0,0,0,0,0,0,0,0,0,0,0,22,22,22,22,22,22,22,13,37,13,29,13,52,13,37,20,20,20,20,20,20,18,27,8,10,8,8,8,8,8,8,8,8,8,8,8,13,13,18,8,8,8,8,8,8,8,8,8,8,8,8]} 1. d4 {[%emt 0:00:00]} Nf6 {[%emt 0:00:00]} 2. c4 {[%emt 0:00:01]} e6 {[%emt 0:00:01]} 3. Nc3 {[%emt 0:00:01]} Bb4 {[%emt 0:00:02]} 4. Nf3 {[%emt 0:00:02]} c5 {[%emt 0:00:02]} 5. g3 {[%emt 0:00:02]} Nc6 {[%emt 0:00:35]} 6. Bg2 {[%emt 0:00:05]} Ne4 {[%emt 0:00:08]} 7. Bd2 {[%emt 0:00:03]} Bxc3 {[%emt 0:00:02]} 8. bxc3 {[%emt 0:00:33]} O-O {[%emt 0:00:05] E20: Nimzo-Indian: 4 g3 and 4 f3.} 9. O-O {[%emt 0:00:05]} b6 {[%emt 0:00:02] [#]} 10. Ne5 $146 {[%emt 0:00:58]} ({Predecessor:} 10. dxc5 bxc5 11. Be3 Bb7 12. Nd2 Nxc3 13. Qe1 Na4 14. Rb1 Rb8 15. Ne4 Nd4 16. Nxc5 Nxc5 17. Bxd4 Bxg2 18. Kxg2 {1-0 (40) Bareev,E (2634)-Karpov,A (2619) Moscow 2009}) 10... Nxd2 {[%emt 0:00:18] White has an edge.} 11. Nxc6 {[%emt 0:00:04]} ({Reject} 11. Bxc6 dxc6 12. Qxd2 f6 $15) 11... dxc6 {[%emt 0:00:14]} 12. Qxd2 {[%emt 0:00:01]} Qd6 {[%emt 0:00:47]} 13. Qf4 {[%emt 0:01:16]} Qxf4 {[%emt 0:00:39]} 14. gxf4 {[%emt 0:00:00]} Ba6 $1 {[%emt 0:00:06]} 15. Bxc6 {[%emt 0:00:02]} Rad8 {[%emt 0:00:20]} 16. dxc5 {[%emt 0:01:02]} Rc8 {[%emt 0:00:33]} 17. Bb5 {[%emt 0:00:20]} Bxb5 {[%emt 0:00:04]} 18. cxb5 {[%emt 0:00:00] [#] Hoping for c6.} Rxc5 $11 {[%emt 0:00:01][%mdl 4096] Endgame KRR-KRR} 19. a4 {[%emt 0:00:02]} Rfc8 {[%emt 0:00:18]} 20. Ra3 {[%emt 0:01:23]} Rd5 {[%emt 0:03:04]} 21. Rb1 {[%emt 0:00:14]} g6 {[%emt 0:00:10]} 22. a5 {[%emt 0:00:07]} Rcc5 {[%emt 0:00:10]} 23. axb6 {[%emt 0:00:18]} axb6 {[%emt 0:00:00]} 24. Ra6 {[%emt 0:00:03]} Rxb5 {[%emt 0:00:03]} 25. Rxb6 {[%emt 0:00:01]} Rbc5 {[%emt 0:00:06]} 26. Rc1 {[%emt 0:00:23]} Rd2 {[%emt 0:00:52]} 27. Kf1 {[%emt 0:00:23]} Ra2 {[%emt 0:00:57]} 28. Rd6 {[%emt 0:01:14]} Ra4 {[%emt 0:01:34]} 29. e3 {[%emt 0:00:05]} Ra2 {[%emt 0:00:01]} 30. c4 {[%emt 0:00:13]} Kf8 {[%emt 0:00:18]} 31. Rd4 {[%emt 0:00:16]} Ke7 {[%emt 0:00:51]} 32. Kg2 {[%emt 0:00:27]} h6 {[%emt 0:01:56]} 33. h4 {[%emt 0:00:12]} Rb2 {[%emt 0:01:01]} 34. Kg3 {[%emt 0:00:36]} (34. Ra1 $5 {[%cal Ra1a7]}) 34... Kf6 {[%emt 0:00:32]} 35. Kf3 {[%emt 0:00:25]} Ra2 {[%emt 0:00:24]} 36. Rc3 {[%emt 0:00:15]} Ke7 {[%emt 0:00:12]} 37. Rd1 {[%emt 0:00:24]} Ra4 {[%emt 0:00:16]} 38. Rdc1 {[%emt 0:00:02]} Ra7 {[%emt 0:00:07]} 39. e4 {[%emt 0:00:23][%cal Be3e4,Be4e5][%mdl 32]} Rac7 {[%emt 0:00:05]} 40. e5 {[%emt 0:00:10]} g5 {[%emt 0:00:41]} 41. hxg5 {[%emt 0:01:50]} hxg5 {[%emt 0:00:00] The position is equal.} 42. Ke4 {[%emt 0:00:04]} gxf4 {[%emt 0:00:10]} 43. Kxf4 {[%emt 0:00:02]} f6 {[%emt 0:00:08]} 44. exf6+ {[%emt 0:00:11]} Kxf6 {[%emt 0:00:00]} 45. Ke3 {[%emt 0:00:01]} Re5+ {[%emt 0:00:15]} 46. Kd2 {[%emt 0:00:06]} Rd7+ {[%emt 0:00:43]} 47. Rd3 {[%emt 0:00:03]} Rxd3+ {[%emt 0:00:01]} 48. Kxd3 {[%emt 0:00:01] KR-KR} Ke7 {[%emt 0:00:00]} 49. f4 {[%emt 0:00:43]} Rf5 {[%emt 0:00:14]} 50. Ke4 {[%emt 0:00:07]} Rc5 {[%emt 0:00:10]} 51. Kd4 {[%emt 0:00:59]} Rf5 {[%emt 0:00:04]} 52. Ke3 {[%emt 0:00:01]} e5 {[%emt 0:00:17]} 53. fxe5 {[%emt 0:00:37]} Rxe5+ {[%emt 0:00:00]} 54. Kd4 {[%emt 0:00:25]} Rh5 {[%emt 0:00:03] Weighted Error Value: White=0.04 (flawless) /Black=0.04 (flawless)} 1/2-1/2

[Event "FTX Road to Miami KO 2022"]
[Site "Online"]
[Date "2022.07.15"]
[Round "2.1"]
[White "Rapport, Richard"]
[Black "Wei, Yi"]
[Result "0-1"]
[ECO "B51"]
[WhiteElo "2764"]
[BlackElo "2727"]
[Annotator "TA"]
[PlyCount "82"]
[EventDate "2022.07.09"]
[EventType "k.o."]
[EventCountry "NET"]
[SourceTitle "playchess.com"]
[Source "ChessBase"]
[SourceQuality "1"]
[TimeControl "900+10"]

{[%evp 9,82,0,0,0,3,0,0,0,0,0,0,0,0,0,0,0,0,0,0,0,0,0,0,0,0,0,0,0,0,0,0,0,0,0,0,0,-7,-54,-58,-64,-32,-93,-97,-94,-97,-97,-94,-99,-91,-71,0,0,0,-67,-60,-173,-62,-328,-333,-386,-391,-390,-390,-383,-373,-389,-380,-445,-445,-474,-431,-425,-396,-408,-393]} 1. e4 {[%emt 0:00:00]} c5 {[%emt 0:00:00]} 2. Nf3 {[%emt 0:00:02][%cal Bg1f3,Bf3d4,Bd4f5][%mdl 32]} d6 {[%emt 0:00:02]} 3. Bb5+ {[%emt 0:00:01]} Nd7 {[%emt 0:00:01][%cal Bb8d7,Bd7c5,Bc5e4][%mdl 32]} 4. d4 {[%emt 0:00:01]} cxd4 {[%emt 0:00:00]} 5. Nxd4 {[%emt 0:00:00]} Ngf6 {[%emt 0:00:03]} 6. O-O {[%emt 0:00:03] B51: Sicilian: Moscow Variation (3 Bb5+) without 3...Bd7.} e5 {[%emt 0:00:06]} 7. Nf5 {[%emt 0:00:05]} a6 {[%emt 0:00:01]} 8. Bd3 {[%emt 0:00:01] The position is equal.} Nc5 {[%emt 0:00:02]} 9. Nc3 {[%emt 0:00:01]} d5 {[%emt 0:00:06][%cal Rd5e4]} 10. Bg5 {[%emt 0:00:01]} dxe4 {[%emt 0:00:19]} 11. Bxe4 {[%emt 0:00:30]} Ncxe4 {[%emt 0:00:36]} 12. Nxg7+ {[%emt 0:04:58]} Bxg7 {[%emt 0:00:01]} 13. Qxd8+ {[%emt 0:00:18]} Kxd8 {[%emt 0:00:02]} 14. Nxe4 {[%emt 0:00:01]} Ke7 {[%emt 0:00:01] [#] Hoping for ...Bf5.} 15. f4 {[%emt 0:00:00]} Ke6 {[%emt 0:00:27]} 16. f5+ {[%emt 0:00:02]} Ke7 {[%emt 0:00:01]} 17. Rad1 {[%emt 0:00:16]} a5 {[%emt 0:06:03] aiming for ...h6.} (17... h6 $5 18. Bh4 a5 $14) 18. Rd5 $1 {[%emt 0:00:11]} Ra6 {[%emt 0:00:03] ...Rd8 is the strong threat.} 19. Re1 $1 {[%emt 0:00:09]} Kf8 {[%emt 0:00:29]} 20. Rd8+ {[%emt 0:00:07]} Ke7 {[%emt 0:00:01]} 21. Rd5 {[%emt 0:00:01]} Kf8 {[%emt 0:00:01]} 22. Rxe5 {[%emt 0:01:43]} Ng4 {[%emt 0:06:35] [#]} ({Don't play} 22... Nxe4 23. R5xe4 Bxb2 24. Re8+ Kg7 25. Rxh8 Kxh8 26. Re8+ Kg7 27. Rxc8 $14) 23. Rd5 $146 {[%emt 0:01:28]} (23. Be7+ $11 Kg8 24. Rd5) ({Predecessor:} 23. Be7+ Kg8 24. Rd5 h6 25. h3 Nf6 26. Nxf6+ Rxf6 27. Bxf6 Bxf6 28. Re8+ Kh7 29. Rxh8+ Bxh8 30. c3 a4 31. g4 {1-0 (52) Libiszewski,F (2514)-Wachinger,N (2376) Germany 2022}) 23... f6 $15 {[%emt 0:00:33]} 24. Bf4 {[%emt 0:02:17] And now Nd6 would win.} Ne5 {[%emt 0:00:01]} 25. Rc5 {[%emt 0:03:18]} (25. Bxe5 $15 fxe5 26. Rc5) 25... Bxf5 $17 {[%emt 0:01:35]} 26. Bxe5 {[%emt 0:00:23]} Bxe4 {[%emt 0:00:07]} (26... fxe5 $2 27. Rf1 Rc6 28. Rxf5+ Ke7 29. Rxa5 $18) 27. Rc8+ {[%emt 0:00:04]} Kf7 {[%emt 0:00:32]} 28. Rc7+ {[%emt 0:00:00]} Kg8 {[%emt 0:00:50][%cal Oh7h5]} (28... Kg6 $2 29. Rxe4 fxe5 30. Rg4+ Kf5 31. Rgxg7 $16) 29. Rc8+ {[%emt 0:00:12] [#]} Kf7 {[%emt 0:00:04]} ({Black should try} 29... Bf8 $1 $17 {Threatens to win with ...Bf5.} 30. Rxe4 fxe5 31. Rxe5 Kg7) 30. Rc7+ $11 {[%emt 0:00:01]} Kg8 {[%emt 0:00:00]} (30... Kg6 $2 31. Rxe4 fxe5 32. Rg4+ Kf5 33. Rgxg7 $16) (30... Kf8 $11) 31. Rc8+ $1 $15 {[%emt 0:01:39]} Bf8 $1 {[%emt 0:00:02] Strongly threatening ...Bf5.} 32. Bd4 {[%emt 0:01:05]} (32. Rxe4 $15 fxe5 33. Rxe5) 32... Re6 {[%emt 0:00:11]} (32... Bf5 $19 33. Rb8 Bxc2) 33. Re3 $2 {[%emt 0:01:09][%mdl 8192] Loses the game.} ({Of course not} 33. Bxf6 Rxf6 34. Rxe4 b6 $17) (33. Rxe4 $1 $15 Rxe4 34. Bxf6) 33... Kf7 $19 {[%emt 0:00:13]} 34. Rc7+ {[%emt 0:00:02]} Be7 {[%emt 0:00:09]} 35. Bc5 {[%emt 0:00:03]} Re8 {[%emt 0:00:10]} 36. Kf2 {[%emt 0:00:08]} Bc6 {[%emt 0:00:34]} 37. Ra3 {[%emt 0:00:09]} a4 {[%emt 0:00:10]} 38. b4 {[%emt 0:00:23]} axb3 {[%emt 0:00:12]} 39. axb3 {[%emt 0:00:02]} Kg6 {[%emt 0:00:04]} 40. Rxe7 {[%emt 0:00:01]} R8xe7 {[%emt 0:00:01]} 41. Bxe7 {[%emt 0:00:03]} Rxe7 {[%emt 0:00:00] Weighted Error Value: White=0.18 (very precise) /Black=0.10 (very precise)} 0-1

[Event "FTX Road to Miami KO 2022"]
[Site "Online"]
[Date "2022.07.15"]
[Round "2.1"]
[White "Duda, Jan-Krzysztof"]
[Black "Aronian, Levon"]
[Result "0-1"]
[ECO "D20"]
[WhiteElo "2750"]
[BlackElo "2775"]
[Annotator "TA"]
[PlyCount "142"]
[EventDate "2022.07.09"]
[EventType "k.o."]
[EventCountry "NET"]
[SourceTitle "playchess.com"]
[Source "ChessBase"]
[SourceQuality "1"]
[TimeControl "900+10"]

{[%evp 12,142,16,0,18,25,36,25,37,37,43,33,40,41,50,48,54,54,39,25,28,31,39,30,30,34,31,16,16,23,20,10,0,0,8,0,23,10,17,6,9,0,0,0,0,0,0,0,0,0,0,0,0,0,0,0,0,0,0,0,7,0,0,0,0,0,0,0,46,49,102,-74,-100,-94,-111,-95,-25,-25,-20,-18,0,0,0,0,0,0,0,-8,0,-419,-419,-422,-459,-456,-442,-424,-405,-373,-98,-40,-40,-485,-485,-6539,-6137,-6129,-6129,-5701,-3680,-12831,-12830,-12829,-12831,-12828,-12826,-12820,-12827,-12811,-12810,-12805,-12802,-12816,-12813,-12809,-12797,-12677,-12662,-11527,-10956,-5566,-4648,-4627,-4626]} 1. d4 {[%emt 0:00:00]} d5 {[%emt 0:00:00]} 2. c4 {[%emt 0:00:02]} dxc4 {[%emt 0:00:01]} 3. e4 {[%emt 0:00:01]} e5 {[%emt 0:00:04]} 4. Nf3 {[%emt 0:00:02]} Bb4+ {[%emt 0:00:04]} 5. Bd2 {[%emt 0:00:01]} Bxd2+ {[%emt 0:00:03]} 6. Qxd2 {[%emt 0:00:00]} exd4 {[%emt 0:00:16]} 7. Qxd4 {[%emt 0:00:20]} Qxd4 {[%emt 0:00:30] The main line 7...Qxd4 scores better than 7...Nf6. D20: Queen's Gambit Accepted: 3 e3 and 3 e4.} 8. Nxd4 {[%emt 0:00:00]} Bd7 {[%emt 0:00:42]} 9. Bxc4 {[%emt 0:00:29]} Nc6 {[%emt 0:00:02] White has an edge.} 10. Nxc6 {[%emt 0:00:18]} Bxc6 {[%emt 0:00:00]} 11. Nc3 {[%emt 0:00:08][%cal Bb1c3,Bc3e2,Be2f4,Bf4d3][%mdl 32]} Ne7 $5 {[%emt 0:00:01][%mdl 4] [#] A promising side line.} 12. f3 $146 {[%emt 0:00:45]} ({Predecessor:} 12. O-O-O O-O 13. Rd2 a6 14. Rhd1 Rfe8 15. f3 Kf8 16. Bb3 Rec8 17. e5 Ng6 18. f4 {1-0 (54) Stocek,J (2573)-Zaslavsky,M (2441) Pardubice 2012}) 12... O-O {[%emt 0:00:51]} 13. Kf2 {[%emt 0:00:02]} Rfd8 {[%emt 0:00:01]} 14. Rhd1 {[%emt 0:00:05] Inhibits Rd2+.} Kf8 {[%emt 0:00:01]} 15. Ne2 {[%emt 0:01:04]} Ba4 {[%emt 0:00:20]} 16. b3 {[%emt 0:00:35]} Be8 {[%emt 0:00:03]} 17. Ke3 {[%emt 0:00:26]} c5 {[%emt 0:00:17]} 18. Nf4 {[%emt 0:00:30]} b6 {[%emt 0:00:14]} 19. Rac1 {[%emt 0:00:58]} Rxd1 {[%emt 0:00:13]} (19... Nc6 {seems wilder.} 20. a3 Nd4 21. Rd3 f5) 20. Rxd1 {[%emt 0:00:00]} Nc6 {[%emt 0:00:01]} 21. Rd2 {[%emt 0:00:25]} Rd8 {[%emt 0:00:09]} 22. Nd3 {[%emt 0:00:47]} Rd4 {[%emt 0:00:37]} 23. Rc2 {[%emt 0:01:27]} a5 {[%emt 0:00:19]} 24. a3 {[%emt 0:02:29][%cal Ob3b4]} Bd7 {[%emt 0:00:41]} 25. Rc3 {[%emt 0:01:15]} f5 {[%emt 0:01:55]} 26. Nf4 {[%emt 0:01:47]} fxe4 {[%emt 0:00:20]} 27. fxe4 {[%emt 0:00:00]} Rd6 {[%emt 0:01:04]} 28. Bb5 {[%emt 0:01:50]} Ke8 {[%emt 0:01:20]} 29. Nd5 {[%emt 0:01:39]} Ne7 {[%emt 0:00:23]} 30. Bc4 {[%emt 0:00:14]} Nxd5+ {[%emt 0:00:47]} 31. Bxd5 $11 {[%emt 0:00:00][%mdl 4096] Endgame KRB-KRB} a4 {[%emt 0:00:02]} 32. b4 {[%emt 0:01:18]} cxb4 {[%emt 0:00:03]} 33. axb4 {[%emt 0:00:00]} Kd8 {[%emt 0:00:05]} 34. Kd4 {[%emt 0:00:04]} Rg6 {[%emt 0:00:02]} 35. g3 {[%emt 0:00:03]} Rh6 {[%emt 0:02:10]} 36. h4 {[%emt 0:00:03]} Rg6 {[%emt 0:00:02]} 37. Kc4 {[%emt 0:00:04]} Rf6 {[%emt 0:00:30]} 38. e5 {[%emt 0:00:37]} Rg6 {[%emt 0:01:29]} 39. Be4 {[%emt 0:00:23]} Rg4 {[%emt 0:00:53]} (39... Be6+ $11 40. Kb5 Bd7+ 41. Kc4 Be6+ 42. Kb5 Bd7+ 43. Kc4) 40. Kd5 $14 {[%emt 0:00:02]} h5 {[%emt 0:01:46]} (40... b5 $1 $14) 41. Re3 $2 {[%emt 0:00:36]} (41. Bf3 $16 Rxg3 42. e6) 41... Ke7 $17 {[%emt 0:00:29]} 42. e6 {[%emt 0:00:06]} Bxe6+ {[%emt 0:00:42]} 43. Ke5 {[%emt 0:00:11]} g6 {[%emt 0:01:00]} (43... Bd7 $1 $17 44. Rc3 Kd8) 44. Rc3 $1 $11 {[%emt 0:00:58]} Bf5 {[%emt 0:00:02]} 45. Bd5 {[%emt 0:00:19]} Kd8 {[%emt 0:01:06] Against Rc7} 46. b5 {[%emt 0:00:07]} Bd7 {[%emt 0:00:36]} 47. Kd6 {[%emt 0:00:09] Threatens to win with Rc7.} Rd4 {[%emt 0:00:02]} 48. Rf3 {[%emt 0:00:10] Rf7 is the strong threat.} Bxb5 {[%emt 0:00:30] Strongly threatening ...Be8.} 49. Rf8+ {[%emt 0:00:12]} Be8 {[%emt 0:00:01]} 50. Ke5 $2 {[%emt 0:00:15][%mdl 8192]} (50. Rh8 $11) 50... Rd2 $19 {[%emt 0:00:02]} 51. Bc6 {[%emt 0:00:05]} Re2+ {[%emt 0:00:05]} 52. Kd6 {[%emt 0:00:00]} a3 {[%emt 0:00:33]} 53. Bxe8 {[%emt 0:00:03]} Rxe8 {[%emt 0:00:00] KR-KR} 54. Rf3 {[%emt 0:00:01]} Kc8 $2 {[%emt 0:00:03]} (54... a2 $19 {has better winning chances.} 55. Ra3 Kc8 56. Rxa2 Kb7) 55. Rxa3 $17 {[%emt 0:00:14] Intending Ra8+ and mate.} Kb7 {[%emt 0:00:01] Prevents Ra8. aiming for ...Rc8.} 56. g4 $2 {[%emt 0:00:22][%mdl 8192] This move loses the game for White.} ({White must play} 56. Rf3 $1 $15) 56... hxg4 $19 {[%emt 0:00:33][%cal Bh5g4,Bg4g3,Bg3g2][%mdl 32] Black is clearly winning.} 57. Ra4 {[%emt 0:00:03]} (57. Rg3 $142 Re4 58. Kd5) 57... g3 {[%emt 0:00:02]} 58. Rg4 {[%emt 0:00:10]} Rh8 {[%emt 0:00:01] And now ...Rh5 would win.} (58... Rd8+ 59. Ke5 $15) 59. Kd5 {[%emt 0:00:26]} g2 $1 {[%emt 0:00:08]} 60. Rxg6 {[%emt 0:00:15]} Rxh4 {[%emt 0:00:02]} ({And not} 60... Rh5+ 61. Ke4 $19) 61. Rxg2 {[%emt 0:00:03]} Ka6 {[%emt 0:00:03]} 62. Ra2+ {[%emt 0:00:17]} Kb5 {[%emt 0:00:01]} 63. Ra1 {[%emt 0:00:10]} Ra4 {[%emt 0:00:06]} 64. Rb1+ {[%emt 0:00:02]} Ka5 {[%emt 0:00:01]} 65. Kc6 {[%emt 0:00:10] [#]} Rc4+ $1 {[%emt 0:00:02]} 66. Kb7 {[%emt 0:00:18]} b5 {[%emt 0:00:03] ( -> ...b4)} 67. Ra1+ {[%emt 0:00:01] [#]} Ra4 $1 {[%emt 0:00:01]} 68. Rh1 {[%emt 0:00:07]} Ra2 {[%emt 0:00:17]} 69. Rh8 {[%emt 0:00:09]} Rg2 {[%emt 0:00:04]} 70. Ra8+ {[%emt 0:00:14]} Kb4 {[%emt 0:00:01]} 71. Ra1 {[%emt 0:00:32]} Kc3 {[%emt 0:00:10] Weighted Error Value: White=0.62/Black=0.12 (very precise)} 0-1